bitfinex-derivatives/quotes_SOLF0:USTF0_20241208
["timestamp","ask_amount","ask_price","bid_price","bid_amount"]
[1733628679008,2.6211,240.71,240.52,6.32376533]
[1733628679222,1.82,240.7,240.56,6.32376533]
[1733628679716,6.32376533,240.64,240.56,6.32376533]
[1733628679918,8.14376533,240.64,240.56,6.32376533]
[1733628680915,8.14376533,240.64,240.51,1.82]
[1733628681119,6.32376533,240.62,240.55,6.32376533]
[1733628681313,2.6211,240.71,240.59,6.32376533]
[1733628681516,6.32376533,240.67,240.59,6.32376533]
[1733628682114,6.32376533,240.67,240.57,1.2776]
[1733628682422,6.32376533,240.65,240.57,7.60136533]
[1733628682722,6.32376533,240.63,240.57,1.2776]
[1733628684422,6.32376533,240.61,240.55,6.32376533]
[1733628684617,6.32376533,240.61,240.53,6.32376533]
[1733628684816,1.82,240.65,240.51,8.14376533]
[1733628685023,6.32376533,240.6,240.51,8.14376533]
[1733628686325,8.14376533,240.6,240.51,6.32376533]
[1733628690423,1.82,240.6,240.53,6.32376533]
[1733628690822,2.6211,240.71,240.5,1.82]
[1733628690823,1.82,240.65,240.55,6.32376533]
[1733628691019,6.32376533,240.62,240.55,8.14376533]
[1733628693433,6.32376533,240.64,240.55,8.14376533]
[1733628697124,6.32376533,240.67,240.57,6.32376533]
[1733628697320,6.32376533,240.67,240.59,6.32376533]
[1733628697321,8.14376533,240.67,240.59,6.32376533]
[1733628697523,1.82,240.67,240.59,6.32376533]
[1733628699325,2.6211,240.71,240.61,6.32376533]
[1733628699635,8.14376533,240.72,240.63,6.32376533]
[1733628700332,59.86928328,240.75,240.65,6.32376533]
[1733628700522,66.19304861,240.75,240.67,6.32376533]
[1733628701525,59.86928328,240.75,240.67,6.32376533]
[1733628701723,1.295,240.83,240.71,6.32376533]
[1733628701923,6.32376533,240.79,240.71,6.32376533]
[1733628704523,6.32376533,240.81,240.73,6.32376533]
[1733628704722,2.07641196,240.8,240.73,6.32376533]
[1733628709332,6.32376533,240.77,240.66,3.9772]
[1733628709627,6.32376533,240.75,240.68,6.32376533]
[1733628710229,8.14376533,240.77,240.7,6.32376533]
[1733628713132,1.82,240.77,240.7,6.32376533]
[1733628714130,6.32376533,240.78,240.7,6.32376533]
[1733628714330,8.14376533,240.8,240.72,6.32376533]
[1733628715932,6.32376533,240.78,240.67,1.82]
[1733628716135,6.32376533,240.78,240.69,6.32376533]
[1733628717630,1.82,240.8,240.71,6.32376533]
[1733628717833,8.14376533,240.8,240.71,6.32376533]
[1733628718829,8.14376533,240.8,240.73,6.32376533]
[1733628719033,52.57661227,240.81,240.75,6.32376533]
[1733628719428,2.6848,240.95,240.75,6.32376533]
[1733628719633,1.82,240.94,240.77,6.32376533]
[1733628719928,6.32376533,240.85,240.77,6.32376533]
[1733628721632,52.56279094,240.94,240.79,6.32376533]
[1733628721834,3.89529157,240.93,240.79,6.32376533]
[1733628722039,2.07537771,240.92,240.79,6.32376533]
[1733628722535,6.32376533,240.88,240.79,6.32376533]
[1733628724436,2.07537771,240.92,240.79,6.32376533]
[1733628724437,6.32376533,240.86,240.79,6.32376533]
[1733628725433,8.14376533,240.88,240.79,6.32376533]
[1733628725834,6.32376533,240.86,240.77,1.82]
[1733628726136,1.82,240.88,240.77,6.32376533]
[1733628726137,6.32376533,240.84,240.77,6.32376533]
[1733628727039,1.82,240.88,240.77,6.32376533]
[1733628727338,6.32376533,240.85,240.77,6.32376533]
[1733628728536,6.32376533,240.83,240.75,8.14376533]
[1733628728741,6.32376533,240.83,240.75,6.32376533]
[1733628728940,8.14376533,240.83,240.74,6.32376533]
[1733628730639,6.32376533,240.79,240.67,1.82]
[1733628730847,6.32376533,240.77,240.69,6.32376533]
[1733628731441,6.32376533,240.75,240.66,2.6126]
[1733628731646,6.32376533,240.75,240.67,6.32376533]
[1733628734146,6.32376533,240.75,240.67,6.30145768]
[1733628735143,6.25035367,240.75,240.67,6.30145768]
[1733628741358,6.32376533,240.73,240.65,34.38086588]
[1733628741547,6.32376533,240.73,240.66,6.32376533]
[1733628745153,6.32376533,240.73,240.65,34.38086588]
[1733628745458,6.32376533,240.73,240.66,6.32376533]
[1733628746149,1.3522,240.77,240.68,6.32376533]
[1733628746454,6.32376533,240.8,240.72,6.32376533]
[1733628746655,1.82,240.82,240.72,6.32376533]
[1733628746853,6.32376533,240.8,240.72,6.32376533]
[1733628748556,6.32376533,240.76,240.67,1.82]
[1733628748749,6.32376533,240.73,240.67,1.82]
[1733628751161,6.32376533,240.71,240.65,34.38086588]
[1733628751553,1.82,240.76,240.65,34.38086588]
[1733628751859,6.32376533,240.72,240.65,34.38086588]
[1733628760059,6.32376533,240.72,240.65,40.70463121]
[1733628769867,6.32376533,240.72,240.65,34.38086588]
[1733628770067,6.32376533,240.72,240.65,40.70463121]
[1733628770571,6.32376533,240.74,240.65,40.70463121]
[1733628771972,1.82,240.76,240.65,40.70463121]
[1733628772269,6.32376533,240.74,240.65,40.70463121]
[1733628773470,7.68896533,240.85,240.73,6.32376533]
[1733628773766,1.82,240.88,240.77,6.32376533]
[1733628773966,6.32376533,240.86,240.77,6.32376533]
[1733628774175,8.14376533,240.86,240.77,6.32376533]
[1733628775970,287.4309403,241.01,240.83,6.32376533]
[1733628776167,1.82,240.93,240.83,6.32376533]
[1733628776474,6.32376533,240.89,240.83,6.32376533]
[1733628776872,6.32376533,240.89,240.81,6.32376533]
[1733628778169,6.32376533,240.89,240.77,1.2965]
[1733628778374,6.32376533,240.87,240.78,6.32376533]
[1733628778573,6.32376533,240.87,240.78,8.14376533]
[1733628778972,1.3413,240.92,240.82,6.32376533]
[1733628778973,6.32376533,240.9,240.82,6.32376533]
[1733628782573,6.32376533,240.93,240.84,6.32376533]
[1733628782879,54.38279094,240.94,240.86,6.32376533]
[1733628784485,6.32376533,240.93,240.86,6.32376533]
[1733628785384,54.38279094,240.94,240.88,6.32376533]
[1733628787984,60.70655627,240.94,240.84,1.82]
[1733628788287,60.70655627,240.94,240.86,6.32376533]
[1733628791986,60.70655627,240.94,240.84,1.82]
[1733628792182,60.70655627,240.94,240.86,6.32376533]
[1733628796584,6.32376533,240.92,240.84,8.14376533]
[1733628797186,6.32376533,240.92,240.84,6.32376533]
[1733628797491,52.56279094,240.94,240.86,6.32376533]
[1733628798889,6.32376533,240.9,240.8,1.82]
[1733628799088,6.32376533,240.9,240.82,6.32376533]
[1733628799986,6.32376533,240.88,240.8,1.82]
[1733628800380,1.82,240.9,240.78,1.82]
[1733628800586,1.82,240.9,240.83,6.32376533]
[1733628800887,6.32376533,240.92,240.83,8.14376533]
[1733628802589,54.38279094,240.94,240.83,8.14376533]
[1733628802590,54.38279094,240.94,240.85,6.32376533]
[1733628802790,60.70655627,240.94,240.85,6.32376533]
[1733628803195,1.82,240.94,240.85,6.32376533]
[1733628803389,8.14376533,240.94,240.85,6.32376533]
[1733628805889,1.3697,241.04,240.89,6.32376533]
[1733628806098,6.32376533,240.98,240.89,6.32376533]
[1733628806290,8.16376533,240.98,240.89,6.32376533]
[1733628808599,1.84,240.98,240.91,6.32376533]
[1733628809395,8.16376533,240.98,240.89,6.32376533]
[1733628810099,8.16376533,240.98,240.88,1.84]
[1733628810296,8.16376533,240.98,240.89,6.32376533]
[1733628811301,1.329,241.03,240.91,6.32376533]
[1733628811501,6.32376533,241.0,240.91,6.32376533]
[1733628812798,6.32376533,241.02,240.93,6.32376533]
[1733628814099,3.169,241.03,240.95,6.32376533]
[1733628814701,1.298,241.15,240.97,6.32376533]
[1733628814905,6.32376533,241.08,240.93,36.18022991]
[1733628815106,1.84,241.07,240.99,6.32376533]
[1733628815299,6.32376533,241.06,240.99,6.32376533]
[1733628817105,6.32376533,241.02,240.93,34.34022991]
[1733628817309,6.32376533,241.02,240.93,40.66399524]
[1733628817310,8.16376533,241.02,240.93,40.66399524]
[1733628817503,8.16376533,241.02,240.95,6.32376533]
[1733628819614,8.16376533,241.02,240.93,40.66399524]
[1733628819809,6.32376533,241.0,240.85,1.2468]
[1733628820011,6.32376533,241.0,240.91,6.32376533]
[1733628831416,6.32376533,240.98,240.91,6.32376533]
[1733628831622,1.84,240.97,240.88,6.32376533]
[1733628831919,6.32376533,240.94,240.86,6.32376533]
[1733628836124,8.99626533,240.96,240.88,6.32376533]
[1733628836720,1.84,240.95,240.9,6.32376533]
[1733628843725,1.84,240.95,240.88,6.32376533]
[1733628846428,1.84,240.95,240.87,6.32376533]
[1733628847035,1.84,240.95,240.86,6.32376533]
[1733628850136,6.32376533,240.92,240.83,9.04666533]
[1733628851733,6.32376533,240.92,240.85,6.32376533]
[1733628852839,6.32376533,240.92,240.83,2.7229]
[1733628853031,6.32376533,240.92,240.84,6.32376533]
[1733628853632,6.32376533,240.9,240.8,34.35936822]
[1733628853847,1.84,240.89,240.81,6.32376533]
[1733628854037,6.32376533,240.88,240.81,6.32376533]
[1733628854644,6.32376533,240.88,240.75,1.84]
[1733628854832,6.32376533,240.88,240.8,6.32376533]
[1733628855036,3.811,240.95,240.77,6.32376533]
[1733628855238,52.54597756,240.96,240.87,6.32376533]
[1733628855439,58.86974289,240.96,240.87,6.32376533]
[1733628855839,1.84,240.98,240.89,6.32376533]
[1733628856036,6.32376533,240.97,240.89,6.32376533]
[1733628858235,6.32376533,240.95,240.82,3.8537]
[1733628858441,6.32376533,240.95,240.86,6.32376533]
[1733628859438,6.32376533,240.93,240.82,3.8537]
[1733628859645,6.32376533,240.93,240.85,6.32376533]
[1733628859646,1.84,240.92,240.85,6.32376533]
[1733628860144,1.84,240.92,240.81,6.32376533]
[1733628860145,6.32376533,240.89,240.81,6.32376533]
[1733628860547,6.32376533,240.87,240.81,6.32376533]
[1733628860740,1.84,240.86,240.81,6.32376533]
[1733628861336,1.84,240.86,240.74,2.5874]
[1733628861548,1.84,240.86,240.78,6.32376533]
[1733628862543,1.84,240.86,240.74,2.5874]
[1733628862748,1.84,240.86,240.78,6.32376533]
[1733628863445,6.32376533,240.85,240.78,6.32376533]
[1733628869155,6.32376533,240.85,240.76,6.32376533]
[1733628869355,6.32376533,240.83,240.72,1.3543]
[1733628869543,6.32376533,240.81,240.73,6.32376533]
[1733628869849,1.88,240.8,240.73,6.32376533]
[1733628870351,1.88,240.8,240.72,1.3543]
[1733628870650,1.88,240.8,240.73,6.32376533]
[1733628871248,1.88,240.8,240.71,36.2505121]
[1733628871249,1.88,240.8,240.71,34.3705121]
[1733628871446,6.32376533,240.79,240.71,34.3705121]
[1733628871752,6.32376533,240.79,240.66,2.5728]
[1733628871753,6.32376533,240.79,240.7,6.32376533]
[1733628873147,6.32376533,240.75,240.66,2.5728]
[1733628873357,1.88,240.74,240.67,6.32376533]
[1733628881762,6.32376533,240.73,240.66,2.5728]
[1733628882062,6.32376533,240.73,240.66,8.89656533]
[1733628883058,6.32376533,240.71,240.62,49.85775672]
[1733628883362,1.88,240.74,240.62,6.32376533]
[1733628883363,6.32376533,240.69,240.62,6.32376533]
[1733628883563,1.88,240.68,240.62,6.32376533]
[1733628886158,1.88,240.68,240.6,1.3654]
[1733628886459,6.32376533,240.67,240.59,6.32376533]
[1733628886860,6.32376533,240.65,240.57,6.32376533]
[1733628887354,6.32376533,240.65,240.55,6.32376533]
[1733628887559,6.32376533,240.63,240.55,6.32376533]
[1733628887759,1.88,240.62,240.55,6.32376533]
[1733628890565,1.88,240.62,240.57,6.32376533]
[1733628890856,3.8813,240.77,240.52,2.6134]
[1733628890857,6.32376533,240.67,240.61,6.32376533]
[1733628891056,1.88,240.66,240.61,6.32376533]
[1733628893365,1.88,240.66,240.59,6.32376533]
[1733628897269,1.88,240.66,240.61,6.32376533]
[1733628900470,1.88,240.66,240.59,6.32376533]
[1733628900769,1.88,240.66,240.58,1.2921]
[1733628902771,1.88,240.66,240.6,6.32376533]
[1733628902965,3.8813,240.77,240.64,6.32376533]
[1733628903166,3.8813,240.77,240.66,6.32376533]
[1733628903167,6.32376533,240.74,240.66,6.32376533]
[1733628904074,1.88,240.76,240.64,6.32376533]
[1733628904075,6.32376533,240.72,240.64,6.32376533]
[1733628904862,6.32376533,240.74,240.66,6.32376533]
[1733628905371,6.32376533,240.7,240.63,2.6354]
[1733628905573,8.20376533,240.7,240.63,2.6354]
[1733628905775,8.20376533,240.7,240.63,8.95916533]
[1733628906176,1.88,240.7,240.65,6.32376533]
[1733628912878,2.5976,240.77,240.63,4.5154]
[1733628913081,2.5976,240.77,240.67,6.32376533]
[1733628913082,6.32376533,240.77,240.67,6.32376533]
[1733628913276,8.20376533,240.77,240.67,6.32376533]
[1733628914686,6.32376533,240.75,240.63,4.5154]
[1733628914888,6.32376533,240.73,240.65,6.32376533]
[1733628916786,6.32376533,240.75,240.65,6.32376533]
[1733628918987,6.32376533,240.75,240.63,4.5154]
[1733628919289,6.32376533,240.75,240.65,6.32376533]
[1733628922790,6.32376533,240.75,240.67,6.32376533]
[1733628926485,6.32376533,240.71,240.63,2.6354]
[1733628926881,6.32376533,240.71,240.63,8.95916533]
[1733628927492,6.32376533,240.71,240.63,2.6354]
[1733628927691,6.32376533,240.71,240.63,8.95916533]
[1733628928186,1.84,240.72,240.63,8.95916533]
[1733628928391,6.32376533,240.71,240.63,8.95916533]
[1733628928595,6.32376533,240.71,240.63,6.32376533]
[1733628928992,6.32376533,240.69,240.62,62.36781243]
[1733628929998,6.32376533,240.67,240.62,62.36781243]
[1733628930189,8.16376533,240.67,240.62,62.36781243]
[1733628936201,6.32376533,240.65,240.58,7.61586533]
[1733628939396,6.32376533,240.61,240.49,1.71275732]
[1733628939601,6.32376533,240.61,240.53,6.32376533]
[1733628941295,3.8343,240.77,240.57,6.32376533]
[1733628941496,6.32376533,240.66,240.57,6.32376533]
[1733628941702,1.84,240.65,240.57,6.32376533]
[1733628941901,1.84,240.65,240.59,6.32376533]
[1733628942297,6.32376533,240.66,240.59,6.32376533]
[1733628942700,3.8343,240.77,240.61,6.32376533]
[1733628942895,1.84,240.76,240.63,6.32376533]
[1733628943206,6.32376533,240.71,240.63,6.32376533]
[1733628943499,8.16376533,240.71,240.63,6.32376533]
[1733628943701,6.32376533,240.69,240.63,6.32376533]
[1733628944506,6.32376533,240.69,240.61,6.32376533]
[1733628947312,6.32376533,240.67,240.57,3.9717]
[1733628947609,6.32376533,240.67,240.58,6.32376533]
[1733628947906,6.32376533,240.67,240.6,6.32376533]
[1733628948509,6.32376533,240.69,240.6,6.32376533]
[1733628950808,1.84,240.71,240.62,6.32376533]
[1733628951011,6.32376533,240.7,240.62,6.32376533]
[1733628951806,8.16376533,240.71,240.62,6.32376533]
[1733628952613,1.84,240.71,240.62,6.32376533]
[1733628952815,8.16376533,240.71,240.62,6.32376533]
[1733628954119,6.32376533,240.71,240.62,6.32376533]
[1733628954316,8.16376533,240.71,240.62,6.32376533]
[1733628956116,6.32376533,240.67,240.58,1.84]
[1733628956422,6.32376533,240.67,240.59,6.32376533]
[1733628957020,6.32376533,240.65,240.57,4.4507]
[1733628959517,6.32376533,240.65,240.57,2.6107]
[1733628962119,6.32376533,240.63,240.56,6.32376533]
[1733628962317,6.32376533,240.59,240.52,6.32376533]
[1733628962525,6.32376533,240.59,240.5,1.84]
[1733628962725,8.16376533,240.61,240.52,6.32376533]
[1733628966628,8.16376533,240.61,240.54,6.32376533]
[1733628967128,1.84,240.61,240.54,6.32376533]
[1733628967924,1.84,240.61,240.5,1.84]
[1733628967925,1.84,240.61,240.56,6.32376533]
[1733628968127,6.32376533,240.64,240.56,6.32376533]
[1733628968725,6.32376533,240.64,240.55,1.84]
[1733628968726,8.16376533,240.66,240.58,6.32376533]
[1733628972525,6.32376533,240.64,240.57,6.32376533]
[1733628973728,6.32376533,240.64,240.55,1.84]
[1733628974029,6.32376533,240.64,240.57,6.32376533]
[1733628974423,8.16376533,240.66,240.57,6.32376533]
[1733628977437,1.84,240.66,240.57,6.32376533]
[1733628977728,8.16376533,240.66,240.59,6.32376533]
[1733628979931,8.16376533,240.66,240.55,1.84]
[1733628980333,8.16376533,240.66,240.57,6.32376533]
[1733628980932,6.32376533,240.64,240.55,1.84]
[1733628981248,6.32376533,240.6,240.53,6.32376533]
[1733628983935,8.16376533,240.6,240.53,6.32376533]
[1733628985637,1.84,240.6,240.55,6.32376533]
[1733628986539,6.32376533,240.64,240.55,6.32376533]
[1733628986838,8.14376533,240.64,240.57,6.32376533]
[1733628992442,1.82,240.64,240.57,6.32376533]
[1733628995239,1.82,240.64,240.55,8.14376533]
[1733628995438,6.32376533,240.63,240.55,1.82]
[1733628995742,6.32376533,240.61,240.54,6.32376533]
[1733628997043,6.32376533,240.61,240.5,1.82]
[1733628997242,6.32376533,240.61,240.54,6.32376533]
[1733628997638,6.32376533,240.63,240.54,6.32376533]
[1733629004950,1.82,240.64,240.54,6.32376533]
[1733629005154,6.32376533,240.63,240.54,6.32376533]
[1733629005750,1.82,240.64,240.54,6.32376533]
[1733629005957,6.32376533,240.62,240.54,6.32376533]
[1733629008152,6.32376533,240.58,240.48,1.82]
[1733629008357,8.14376533,240.58,240.49,8.25422829]
[1733629008657,6.32376533,240.56,240.5,2.0787945]
[1733629008955,6.32376533,240.56,240.42,1.21296494]
[1733629008956,6.32376533,240.56,240.47,6.32376533]
[1733629010150,6.32376533,240.54,240.42,57.40932945]
[1733629010358,6.32376533,240.54,240.45,6.32376533]
[1733629010556,1.82,240.53,240.45,6.32376533]
[1733629011953,6.32376533,240.52,240.42,57.40932945]
[1733629012153,6.32376533,240.52,240.43,4.92539568]
[1733629012357,6.32376533,240.5,240.43,6.32376533]
[1733629013255,6.32376533,240.5,240.42,57.40932945]
[1733629013653,6.32376533,240.5,240.42,63.73309478]
[1733629014262,6.32376533,240.48,240.42,63.73309478]
[1733629014468,8.14376533,240.48,240.42,63.73309478]
[1733629015071,8.14376533,240.48,240.37,1.82]
[1733629015372,6.32376533,240.44,240.37,6.32376533]
[1733629015962,6.32376533,240.46,240.37,6.32376533]
[1733629016166,6.32376533,240.46,240.32,1.82]
[1733629016471,6.32376533,240.46,240.38,6.32376533]
[1733629018371,8.14376533,240.48,240.4,6.32376533]
[1733629018674,8.14376533,240.49,240.42,6.32376533]
[1733629019474,1.82,240.49,240.42,6.32376533]
[1733629019870,6.32376533,240.48,240.42,6.32376533]
[1733629020873,6.32376533,240.48,240.37,1.82]
[1733629021072,6.32376533,240.48,240.39,6.32376533]
[1733629021774,6.32376533,240.46,240.39,6.32376533]
[1733629023080,6.32376533,240.44,240.34,1.82]
[1733629023281,8.14376533,240.44,240.36,6.32376533]
[1733629031680,8.14376533,240.44,240.33,4.5491]
[1733629031681,1.82,240.45,240.38,6.32376533]
[1733629031873,8.14376533,240.47,240.38,6.32376533]
[1733629032379,6.32376533,240.47,240.38,6.32376533]
[1733629033783,1.82,240.48,240.38,6.32376533]
[1733629033983,6.32376533,240.47,240.38,6.32376533]
[1733629034382,6.32376533,240.47,240.33,2.7291]
[1733629034383,6.32376533,240.52,240.44,6.32376533]
[1733629034581,3.9783,240.62,240.44,6.32376533]
[1733629034582,1.82,240.54,240.44,6.32376533]
[1733629034776,6.32376533,240.52,240.44,6.32376533]
[1733629039187,3.9783,240.62,240.46,6.32376533]
[1733629039188,1.82,240.53,240.46,6.32376533]
[1733629041195,1.82,240.53,240.45,6.32376533]
[1733629044793,6.32376533,240.5,240.44,1.82]
[1733629045099,6.32376533,240.5,240.42,6.32376533]
[1733629046703,6.32376533,240.52,240.44,6.32376533]
[1733629047504,1.82,240.53,240.46,6.32376533]
[1733629050004,1.82,240.53,240.45,1.82]
[1733629050309,1.82,240.53,240.46,6.32376533]
[1733629052308,6.32376533,240.5,240.41,2.7054]
[1733629052504,6.32376533,240.5,240.42,2.07926106]
[1733629052702,6.32376533,240.48,240.41,2.7054]
[1733629052904,6.32376533,240.48,240.41,1.3816]
[1733629053105,8.14376533,240.48,240.41,1.3816]
[1733629056111,8.14376533,240.48,240.41,7.70536533]
[1733629060012,8.14376533,240.48,240.41,1.3816]
[1733629063215,8.14376533,240.48,240.4,6.32376533]
[1733629065009,1.82,240.52,240.44,6.32376533]
[1733629065213,8.14376533,240.52,240.44,6.32376533]
[1733629065407,6.32376533,240.52,240.44,6.32376533]
[1733629067215,6.32376533,240.52,240.39,1.82]
[1733629067413,6.32376533,240.52,240.43,6.32376533]
[1733629067614,6.32376533,240.52,240.44,1.03962997]
[1733629067818,6.32376533,240.52,240.43,6.32376533]
[1733629068320,6.32376533,240.52,240.44,1.03964074]
[1733629068517,6.32376533,240.52,240.43,6.32376533]
[1733629068811,6.32376533,240.52,240.44,1.03964304]
[1733629069013,6.32376533,240.52,240.43,6.32376533]
[1733629069518,6.32376533,240.52,240.44,1.03962643]
[1733629069718,6.32376533,240.52,240.43,6.32376533]
[1733629069918,6.32376533,240.52,240.44,2.07926928]
[1733629070121,6.32376533,240.52,240.43,6.32376533]
[1733629070417,6.32376533,240.52,240.44,2.07926434]
[1733629070614,6.32376533,240.52,240.43,6.32376533]
[1733629070820,6.32376533,240.52,240.44,2.07926476]
[1733629071021,6.32376533,240.52,240.43,6.32376533]
[1733629071319,6.32376533,240.52,240.44,2.07924328]
[1733629071518,6.32376533,240.52,240.43,6.32376533]
[1733629071718,6.32376533,240.52,240.44,2.07921598]
[1733629071921,6.32376533,240.5,240.45,1.03960978]
[1733629072120,6.32376533,240.5,240.43,6.32376533]
[1733629072317,6.32376533,240.5,240.44,2.0792589]
[1733629072525,6.32376533,240.52,240.43,6.32376533]
[1733629072718,6.32376533,240.52,240.44,2.07926298]
[1733629072917,6.32376533,240.52,240.43,6.32376533]
[1733629075622,1.82,240.53,240.43,6.32376533]
[1733629075937,8.14376533,240.53,240.44,1.03960869]
[1733629076118,8.14376533,240.53,240.43,6.32376533]
[1733629077722,6.32376533,240.51,240.43,6.32376533]
[1733629077927,6.32376533,240.51,240.4,34.41830619]
[1733629078123,6.32376533,240.51,240.42,6.32376533]
[1733629079216,6.32376533,240.51,240.4,34.41830619]
[1733629079217,6.32376533,240.49,240.4,34.41830619]
[1733629079418,6.32376533,240.49,240.41,8.40315394]
[1733629079620,6.32376533,240.49,240.41,6.32376533]
[1733629080520,6.32376533,240.47,240.39,6.32376533]
[1733629081125,6.32376533,240.45,240.4,4.92910388]
[1733629081322,6.32376533,240.45,240.41,2.07955106]
[1733629081520,6.32376533,240.45,240.36,40.7466826]
[1733629081735,6.32376533,240.45,240.37,6.59294731]
[1733629081924,6.32376533,240.45,240.38,4.92926441]
[1733629082221,6.32376533,240.45,240.39,2.07966811]
[1733629082422,6.32376533,240.45,240.38,6.32376533]
[1733629082625,6.32376533,240.45,240.39,2.07973214]
[1733629082824,6.32376533,240.45,240.38,6.32376533]
[1733629083026,6.32376533,240.45,240.39,2.0797392]
[1733629083222,6.32376533,240.45,240.36,34.42291727]
[1733629083429,6.32376533,240.45,240.37,12.9159042]
[1733629083625,6.32376533,240.45,240.38,4.92834751]
[1733629083822,6.32376533,240.45,240.39,2.0797392]
[1733629084026,6.32376533,240.45,240.36,34.42291727]
[1733629084230,1.82,240.48,240.37,19.13686157]
[1733629084530,6.32376533,240.47,240.39,6.32376533]
[1733629084823,6.32376533,240.47,240.4,4.92811394]
[1733629085023,6.32376533,240.47,240.39,6.32376533]
[1733629085024,6.32376533,240.47,240.41,1.03983754]
[1733629085231,6.32376533,240.47,240.39,6.32376533]
[1733629085440,6.32376533,240.47,240.4,2.84819482]
[1733629085625,6.32376533,240.47,240.41,2.07949002]
[1733629085831,6.32376533,240.47,240.39,6.32376533]
[1733629086023,6.32376533,240.47,240.4,2.07963506]
[1733629086221,6.32376533,240.47,240.39,6.32376533]
[1733629086422,6.32376533,240.47,240.4,2.07961203]
[1733629086630,6.32376533,240.47,240.39,6.32376533]
[1733629086928,6.32376533,240.47,240.4,2.07960474]
[1733629087129,6.32376533,240.47,240.39,6.32376533]
[1733629087332,6.32376533,240.47,240.4,1.0398066]
[1733629087631,6.32376533,240.47,240.38,6.32376533]
[1733629087826,6.32376533,240.47,240.39,2.07966396]
[1733629088027,6.32376533,240.47,240.35,1.2771]
[1733629088326,6.32376533,240.47,240.38,6.32376533]
[1733629093333,1.82,240.48,240.4,6.32376533]
[1733629093635,8.14376533,240.48,240.4,6.32376533]
[1733629094838,1.82,240.47,240.4,6.32376533]
[1733629095438,52.64230642,240.5,240.42,6.32376533]
[1733629095733,52.64230642,240.5,240.44,6.32376533]
[1733629095734,1.82,240.49,240.44,6.32376533]
[1733629099138,1.82,240.49,240.42,6.32376533]
[1733629099339,8.14376533,240.49,240.43,2.07934436]
[1733629099638,8.14376533,240.49,240.44,1.03967218]
[1733629099838,8.14376533,240.49,240.42,6.32376533]
[1733629100039,8.14376533,240.49,240.43,2.07933922]
[1733629100242,8.14376533,240.49,240.44,1.03966961]
[1733629100438,8.14376533,240.49,240.42,6.32376533]
[1733629100639,8.14376533,240.49,240.43,2.07934638]
[1733629100842,8.14376533,240.49,240.44,1.03967319]
[1733629101145,8.14376533,240.49,240.4,6.32376533]
[1733629101442,8.14376533,240.49,240.41,8.25410817]
[1733629101643,8.14376533,240.49,240.42,4.92717659]
[1733629101941,8.14376533,240.49,240.43,1.03966612]
[1733629102137,8.14376533,240.49,240.4,6.32376533]
[1733629102337,8.14376533,240.49,240.41,8.25451513]
[1733629102643,8.14376533,240.49,240.42,4.92742237]
[1733629102843,8.14376533,240.49,240.43,2.07943296]
[1733629103041,8.14376533,240.49,240.4,6.32376533]
[1733629103236,8.14376533,240.49,240.41,8.25429134]
[1733629103440,8.14376533,240.49,240.42,4.92725656]
[1733629103642,8.14376533,240.49,240.43,2.07939674]
[1733629103945,8.14376533,240.49,240.4,6.32376533]
[1733629104241,8.14376533,240.49,240.42,6.32376533]
[1733629104445,8.14376533,240.49,240.43,2.07939674]
[1733629104641,8.14376533,240.49,240.42,6.32376533]
[1733629104841,8.14376533,240.49,240.43,2.07939636]
[1733629105044,8.14376533,240.49,240.42,6.32376533]
[1733629105243,1.82,240.49,240.43,2.07939636]
[1733629105440,1.82,240.49,240.42,6.32376533]
[1733629105851,1.82,240.49,240.43,1.03969813]
[1733629106143,1.82,240.49,240.42,6.32376533]
[1733629106344,1.82,240.49,240.43,2.0793976]
[1733629106546,1.82,240.49,240.42,6.32376533]
[1733629106748,52.64230642,240.5,240.43,1.03970171]
[1733629106938,52.64230642,240.5,240.42,6.32376533]
[1733629106939,58.96607175,240.5,240.42,6.32376533]
[1733629107143,58.96607175,240.5,240.43,2.07940196]
[1733629107339,6.32376533,240.52,240.44,6.32376533]
[1733629111646,6.32376533,240.5,240.43,1.82]
[1733629111953,6.32376533,240.5,240.42,6.32376533]
[1733629113249,6.32376533,240.5,240.44,6.32376533]
[1733629116763,6.32376533,240.52,240.44,6.32376533]
[1733629119265,6.32376533,240.52,240.37,1.71323003]
[1733629119266,287.4309403,240.78,240.5,6.32376533]
[1733629119565,6.32376533,240.68,240.59,6.32376533]
[1733629120067,2.07753355,240.67,240.59,6.32376533]
[1733629120465,2.07753355,240.67,240.6,1.04922003]
[1733629120666,2.07753355,240.67,240.61,1.04922003]
[1733629120867,2.07753355,240.67,240.59,6.32376533]
[1733629121168,2.07753355,240.67,240.6,1.04922145]
[1733629121370,2.07753355,240.67,240.61,1.04836407]
[1733629121569,2.07753355,240.67,240.59,6.32376533]